fUST/lending_fUST_20240429
["ID","MTS","AMOUNT","RATE_DAILY","PERIOD"]
[324790320,1714335043373,-151.0,0.0002,2]
[324790322,1714335043384,-173.546108,0.0002,2]
[324790324,1714335043393,-173.546108,0.0002,2]
[324790326,1714335043402,-173.546108,0.0002,2]
[324790328,1714335043411,-173.546108,0.0002,2]
[324790329,1714335043422,-151.0,0.0002,2]
[324790330,1714335043432,-151.0,0.0002,2]
[324790331,1714335043442,-151.0,0.0002,2]
[324790333,1714335043452,-151.0,0.0002,2]
[324790335,1714335043461,-381.0,0.0002,2]
[324790336,1714335043471,-151.0,0.0002,2]
[324790337,1714335043480,-151.0,0.0002,2]
[324790338,1714335043489,-151.0,0.0002,2]
[324790339,1714335043499,-151.0,0.0002,2]
[324790340,1714335043508,-151.0,0.0002,2]
[324790341,1714335043518,-151.0,0.0002,2]
[324790342,1714335043527,-151.0,0.0002,2]
[324790343,1714335043537,-278.092933,0.0002,2]
[324790344,1714335043546,-410.580392,0.0002,2]
[324790345,1714335043555,-410.580392,0.0002,2]
[324790346,1714335043564,-410.580392,0.0002,2]
[324790347,1714335043573,-410.580392,0.0002,2]
[324790348,1714335043582,-214.687252,0.0002,2]
[324790349,1714335043591,-214.687252,0.0002,2]
[324790350,1714335043600,-304.390787,0.00020548,2]
[324790351,1714335043609,-343.7849533,0.00020548,2]
[324790352,1714335043619,-620.20671299,0.00020706,2]
[324790353,1714335043628,-582.2,0.0002075,3]
[324790354,1714335043637,-478.0,0.000209,2]
[324790355,1714335043647,-541.90206492,0.00021,7]
[324790356,1714335043656,-773.57705281,0.00021,2]
[324790357,1714335043665,-21122.20914177,0.00021,2]
[324790358,1714335043675,-173.546108,0.00021,2]
[324790359,1714335043685,-173.546108,0.00021,2]
[324790360,1714335043694,-151.0,0.00021,2]
[324790361,1714335043704,-151.0,0.00021,2]
[324790362,1714335043713,-222.246328,0.00021,2]
[324790363,1714335043722,-151.0,0.00021,2]
[324790364,1714335043732,-410.580392,0.00021,2]
[324790365,1714335043741,-410.580392,0.00021,2]
[324790366,1714335043750,-214.687252,0.00021,2]
[324790367,1714335043760,-1152.0,0.00021013,2]
[324790368,1714335043769,-303.8919725,0.00021096,2]
[324790369,1714335043779,-1112.58801761,0.00021328,4]
[324790370,1714335043788,-1152.0,0.0002141,2]
[324790371,1714335043797,-582.2,0.000216,3]
[324790372,1714335043807,-620.01033565,0.00021741,2]
[324790373,1714335043816,-763.0,0.000219,2]
[324790374,1714335043825,-763.0,0.000219,2]
[324790375,1714335043834,-551.09155312,0.000219,2]
[324790376,1714335043844,-551.09155308,0.000219,2]
[324790377,1714335043853,-551.09155308,0.000219,2]
[324790378,1714335043863,-551.09155308,0.000219,2]
[324790379,1714335043872,-551.09155308,0.000219,2]
[324790380,1714335043882,-551.09155308,0.000219,2]
[324790381,1714335043891,-551.09155308,0.000219,2]
[324790382,1714335043902,-551.09155308,0.000219,2]
[324790383,1714335043911,-551.09155308,0.000219,2]
[324790384,1714335043920,-551.09155308,0.000219,2]
[324790385,1714335043930,-4357.43417431,0.000219,2]
[324790386,1714335043939,-4357.43417423,0.000219,2]
[324790387,1714335043948,-4357.43417423,0.000219,2]
[324790388,1714335043958,-4357.43417423,0.000219,2]
[324790389,1714335043968,-4357.43417423,0.000219,2]
[324790390,1714335043977,-4357.43417423,0.000219,2]
[324790391,1714335043987,-4357.43417423,0.000219,2]
[324790392,1714335043996,-4357.43417423,0.000219,2]
[324790393,1714335044006,-4357.43417423,0.000219,2]
[324790394,1714335044015,-4357.43417423,0.000219,2]
[324790395,1714335044024,-173.546108,0.000219,2]
[324790396,1714335044033,-173.546108,0.000219,2]
[324790397,1714335044042,-173.546108,0.000219,2]
[324790400,1714335044051,-173.546108,0.000219,2]
[324790402,1714335044061,-256.859557,0.000219,2]
[324790403,1714335044070,-271.675802,0.000219,2]
[324790404,1714335044079,-151.0,0.000219,2]
[324790406,1714335044089,-151.0,0.000219,2]
[324790408,1714335044098,-410.580392,0.000219,2]
[324790409,1714335044108,-410.580384,0.000219,2]
[324790410,1714335044118,-214.687252,0.000219,2]
[324790411,1714335044127,-160.0,0.00021915,2]
[324790412,1714335044136,-142295.86166639,0.00021916,2]
[324790413,1714335044148,-23983.12752909,0.00021916,2]
[324790414,1714335044160,-200469.38367165,0.00021916,2]
[324790415,1714335044170,-144022.9053814,0.00021916,2]
[324790416,1714335044182,-659.39216994,0.00021916,2]
[324790417,1714335044192,-10498.37893182,0.00021916,2]
[324790418,1714335044205,-78303.17216071,0.00021916,2]
[324790419,1714335044216,-3175.80000004,0.00021916,2]
[324790420,1714335044227,-469.5,0.00021916,2]
[324790421,1714335044238,-318.46858502,0.00021916,2]
[324790422,1714335044249,-9282.05428548,0.00021916,2]
[324790423,1714335044260,-11210.14148034,0.00021916,2]
[324790424,1714335044271,-1261.65925143,0.00021916,2]
[324790425,1714335044619,-44444.0,0.000172,2]
[324790426,1714335044628,-214.687252,0.0002,2]
[324790427,1714335044638,-214.687252,0.0002,2]
[324790428,1714335044646,-214.687252,0.00021,2]
[324790429,1714335044655,-214.687252,0.000219,2]
[324790430,1714335044665,-46331.84576953,0.00021916,2]
[324790431,1714335044676,-6939.42176306,0.00021916,2]
[324790432,1714335044688,-5291.71019838,0.00021916,2]
[324790433,1714335044698,-3166.75,0.00021916,2]
[324790434,1714335044711,-4872.54731937,0.00021916,2]
[324790435,1714335044720,-173.546108,0.00021916,2]
[324790436,1714335044731,-173.546106,0.00021916,2]
[324790437,1714335044740,-302.55568635,0.00021917,2]
[324790438,1714335044750,-500.0,0.00021917,2]
[324790439,1714335044760,-500.0,0.00021917,2]
[324790440,1714335044769,-500.0,0.00021917,2]
[324790441,1714335044779,-500.0,0.00021917,2]
[324790442,1714335044788,-490.3446508,0.00021917,2]
[324790443,1714335044798,-500.0,0.00021917,2]
[324790444,1714335044807,-500.0,0.00021917,2]
[324790445,1714335044817,-419.29862352,0.00021917,2]
[324790446,1714335044827,-569.9,0.00021917,2]
[324790447,1714335044836,-500.0,0.00021917,2]
[324790448,1714335044845,-500.0,0.00021917,2]
[324790449,1714335044855,-500.0,0.00021917,2]
[324790450,1714335044865,-500.0,0.00021917,2]
[324790451,1714335044874,-500.0,0.00021917,2]
[324790452,1714335044883,-500.0,0.00021917,2]
[324790453,1714335044893,-500.0,0.00021917,2]
[324790454,1714335044903,-500.0,0.00021917,2]
[324790455,1714335044913,-500.0,0.00021917,2]
[324790456,1714335044923,-500.0,0.00021917,2]
[324790457,1714335044933,-709.39,0.00021917,2]
[324790458,1714335044942,-19.87150597,0.00021917,2]
[324790459,1714335044955,-480.12849403,0.00021917,2]
[324790460,1714335044964,-2218.77,0.00021917,2]
[324790461,1714335044974,-10.01189187,0.00021917,2]
[324790462,1714335044985,-489.98810813,0.00021917,2]
[324790463,1714335044995,-500.0,0.00021917,2]
[324790464,1714335045003,-40.61410656,0.00021917,2]
[324790465,1714335045015,-300.66629422,0.00021917,2]
[324790614,1714335046710,-682.32995178,0.00017199,2]
[324790617,1714335046720,-466.46616223,0.00017199,2]
[324790620,1714335046729,-10743.00547989,0.00017298,2]
[324790623,1714335046740,-4929.48957276,0.00017298,2]
[324790626,1714335046749,-155.29350389,0.0001782,2]
[324790629,1714335046758,-272.57249958,0.00018999,2]
[324790632,1714335046767,-335.37959922,0.00021917,2]
[324790635,1714335046777,-500.0,0.00021917,2]
[324790638,1714335046786,-689.64,0.00021917,2]
[324790641,1714335046794,-500.0,0.00021917,2]
[324790644,1714335046804,-676.05,0.00021917,2]
[324790647,1714335046813,-724.58,0.00021917,2]
[324790650,1714335046822,-500.0,0.00021917,2]
[324790652,1714335046831,-500.0,0.00021917,2]
[324790654,1714335046840,-500.0,0.00021917,2]
[324790656,1714335046849,-500.0,0.00021917,2]
[324790657,1714335046859,-500.0,0.00021917,2]
[324790659,1714335046868,-519.83,0.00021917,2]
[324790662,1714335046878,-500.0,0.00021917,2]
[324790663,1714335046887,-491.96482456,0.00021917,2]
[324790666,1714335046899,-403.04517544,0.00021917,2]
[324790667,1714335046908,-500.0,0.00021917,2]
[324790669,1714335046918,-910.13,0.00021917,2]
[324790671,1714335046927,-500.0,0.00021917,2]
[324790673,1714335046940,-500.0,0.00021917,2]
[324790675,1714335046949,-500.0,0.00021917,2]
[324790677,1714335046958,-500.0,0.00021917,2]
[324790679,1714335046968,-500.0,0.00021917,2]
[324790681,1714335046977,-500.0,0.00021917,2]
[324790683,1714335046986,-710.39,0.00021917,2]
[324790686,1714335046995,-295.32679716,0.00021917,2]
[324790688,1714335047007,-205.32193904,0.00021917,2]
[324790690,1714335047016,-500.0,0.00021917,2]
[324790692,1714335047025,-502.97678512,0.00021917,2]
[324790694,1714335047034,-506.28401356,0.00021917,2]
[324790696,1714335047043,-595.19,0.00021917,2]
[324790698,1714335047052,-514.73255004,0.00021917,2]
[324790700,1714335047061,-500.0,0.00021917,2]
[324790702,1714335047071,-848.19,0.00021917,2]
[324790704,1714335047080,-500.0,0.00021917,2]
[324790706,1714335047088,-500.0,0.00021917,2]
[324790708,1714335047098,-500.0,0.00021917,2]
[324790709,1714335047107,-501.55151299,0.00021917,2]
[324790711,1714335047117,-500.0,0.00021917,2]
[324790713,1714335047126,-500.0,0.00021917,2]
[324790716,1714335047135,-500.0,0.00021917,2]
[324790717,1714335047145,-500.0,0.00021917,2]
[324790720,1714335047154,-501.27328034,0.00021917,2]
[324790721,1714335047163,-500.0,0.00021917,2]
[324790723,1714335047172,-500.0,0.00021917,2]
[324790725,1714335047184,-500.0,0.00021917,2]
[324790728,1714335047193,-1034.56,0.00021917,2]
[324790730,1714335047202,-500.0,0.00021917,2]
[324790732,1714335047211,-500.0,0.00021917,2]
[324790734,1714335047220,-500.0,0.00021917,2]
[324790735,1714335047229,-500.0,0.00021917,2]
[324790737,1714335047239,-500.0,0.00021917,2]
[324790739,1714335047248,-923.64,0.00021917,2]
[324790742,1714335047258,-764.45,0.00021917,2]
[324790743,1714335047266,-500.0,0.00021917,2]
[324790745,1714335047275,-854.04,0.00021917,2]
[324790757,1714335047385,-500.0,0.00021917,2]
[324790759,1714335047395,-500.0,0.00021917,2]
[324790761,1714335047405,-500.0,0.00021917,2]
[324790763,1714335047414,-985.43,0.00021917,2]
[324790765,1714335047424,-500.0,0.00021917,2]
[324790767,1714335047434,-500.0,0.00021917,3]
[324790769,1714335047443,-501.9528942,0.00021917,4]
[324790771,1714335047453,-500.0,0.00021917,2]
[324790773,1714335047464,-559.72585486,0.00021917,2]
[324790775,1714335047474,-1209.23,0.00021917,2]
[324790777,1714335047483,-2938.07,0.00021917,2]
[324790779,1714335047492,-500.0,0.00021917,2]
[324790781,1714335047500,-504.46,0.00021917,2]
[324790783,1714335047510,-500.0,0.00021917,2]
[324790785,1714335047519,-500.0,0.00021917,2]
[324790787,1714335047528,-172.63451776,0.00021917,2]
[324790789,1714335047537,-500.0,0.00021917,2]
[324790791,1714335047546,-1682.01,0.00021917,2]
[324790793,1714335047555,-500.0,0.00021917,2]
[324790795,1714335047564,-500.0,0.00021917,2]
[324790797,1714335047573,-1107.15,0.00021917,2]
[324790799,1714335047583,-500.0,0.00021917,2]
[324790802,1714335047593,-1373.74,0.00021917,2]
[324790804,1714335047602,-500.0,0.00021917,2]
[324790806,1714335047611,-1347.42,0.00021917,2]
[324790808,1714335047621,-500.0,0.00021917,2]
[324790810,1714335047630,-500.0,0.00021917,2]
[324790812,1714335047639,-500.0,0.00021917,2]
[324790814,1714335047648,-500.0,0.00021917,2]
[324790816,1714335047657,-500.0,0.00021917,2]
[324790818,1714335047667,-500.0,0.00021917,2]
[324790820,1714335047676,-500.0,0.00021917,3]
[324790822,1714335047687,-500.0,0.00021917,2]
[324790824,1714335047696,-500.0,0.00021917,4]
[324790826,1714335047705,-500.0,0.00021917,5]
[324790828,1714335047714,-500.0,0.00021917,6]
[324790830,1714335047723,-500.0,0.00021917,7]
[324790832,1714335047731,-500.0,0.00021917,8]
[324790834,1714335047740,-500.0,0.00021917,9]
[324790836,1714335047750,-562.61928621,0.00021917,10]
[324790838,1714335047758,-500.0,0.00021917,2]
[324790839,1714335047768,-509.76830946,0.00021917,2]
[324790842,1714335047777,-500.0,0.00021917,2]
[324790843,1714335047786,-585.36,0.00021917,2]
[324790846,1714335047796,-500.0,0.00021917,2]
[324790847,1714335047806,-500.0,0.00021917,2]
[324790849,1714335047815,-500.0,0.00021917,2]
[324790852,1714335047824,-500.0,0.00021917,2]
[324790853,1714335047834,-1584.69,0.00021917,2]
[324790855,1714335047843,-500.0,0.00021917,2]
[324790857,1714335047852,-500.0,0.00021917,2]
[324790860,1714335047861,-500.0,0.00021917,2]
[324790862,1714335047870,-500.0,0.00021917,2]
[324790864,1714335047880,-500.0,0.00021917,2]
[324790866,1714335047889,-500.0,0.00021917,2]
[324790867,1714335047899,-517.71,0.00021917,2]
[324790870,1714335047908,-1690.66,0.00021917,2]
[324790872,1714335047918,-500.0,0.00021917,2]
[324790873,1714335047932,-500.0,0.00021917,2]
[324790876,1714335047941,-500.0,0.00021917,2]
[324790878,1714335047951,-631.38,0.00021917,2]
[324790879,1714335047960,-1189.93,0.00021917,2]
[324790881,1714335047969,-489.95846747,0.00021917,2]
[324790883,1714335047978,-500.0,0.00021917,2]
[324790885,1714335047987,-500.0,0.00021917,2]
[324790887,1714335047997,-5136.53,0.00021917,2]
[324790889,1714335048006,-500.0,0.00021917,2]
[324790892,1714335048015,-502.98969046,0.00021917,2]
[324790894,1714335048025,-1576.62,0.00021917,2]
[324790896,1714335048034,-500.0,0.00021917,2]
[324790897,1714335048043,-504.80028355,0.00021917,2]
[324790900,1714335048053,-500.0,0.00021917,2]
[324790901,1714335048062,-567.5,0.00021917,2]
[324790903,1714335048071,-500.0,0.00021917,2]
[324790905,1714335048080,-127.00440352,0.00021917,2]
[324790908,1714335048096,-1391.33234202,0.00021917,2]
[324790910,1714335048107,-262.5,0.00021917,2]
[324790913,1714335048118,-793.85475106,0.00021917,2]
[324797357,1714335655828,1091.30429574,9.999e-05,2]
[324797358,1714335677863,718.44665129,9.999e-05,2]
[324797374,1714336039118,-887.5967019,0.00011811,2]
[324797375,1714336039145,-1621.09215219,0.00011811,2]
[324797376,1714336150179,-718.44665129,0.00011387,2]
[324797377,1714336150198,-931.4354149,0.00011388,2]
[324797378,1714336150218,-883.33764023,0.00011809,2]
[324797379,1714336161113,-207.96665551,0.00011809,2]
[324797380,1714336161134,-300.0,0.0001181,2]
[324797381,1714336161155,-300.0,0.0001181,2]
[324797382,1714336161176,-13163.80619856,0.00011811,2]
[324797383,1714336161198,-24559.65993073,0.00011812,2]
[324797384,1714336163108,-340.34006927,0.00011812,2]
[324797385,1714336163128,-250.0,0.00012161,2]
[324797386,1714336163148,-186.7584963,0.00012391,2]
[324797387,1714336163168,-1742.51917393,0.00012391,2]
[324797416,1714336232871,-419.24355141,0.00012873,2]
[324797417,1714336232881,-249.87278129,0.00012873,2]
[324797418,1714336232890,-1444.82441594,0.00012973,2]
[324797419,1714336232899,-300.0,0.00013698,2]
[324797420,1714336232908,-166.666666,0.00013699,2]
[324797421,1714336232917,-3792.002205,0.00013699,2]
[324797423,1714336232926,-972.9654145,0.00013699,2]
[324797425,1714336232936,-3000.0,0.00013699,2]
[324797427,1714336232945,-730.49023799,0.000138,2]
[324797429,1714336232955,-928.36107169,0.00014,2]
[324797430,1714336232966,-5734.4298936,0.00014686,2]
[324797432,1714336232975,-300.0,0.00014728,2]
[324797434,1714336232985,-154.79876161,0.00015,2]
[324797436,1714336233005,-420.0,0.00015011,2]
[324797439,1714336233015,-154.79876161,0.00015026,2]
[324797441,1714336233024,-194.1,0.0001608,3]
[324797443,1714336233034,-718.44665129,0.000162,2]
[324797445,1714336233043,-420.0,0.00016201,2]
[324797447,1714336233052,-587.0,0.00016451,2]
[324797449,1714336233061,-194.1,0.0001689,3]
[324797451,1714336233071,-188.96899093,0.00017099,2]
[324797453,1714336233081,-889.58202411,0.0001715,2]
[324797455,1714336233091,-889.5820241,0.00017163,2]
[324797457,1714336233100,-889.5820241,0.00017175,2]
[324797459,1714336233109,-889.5820241,0.00017188,2]
[324797461,1714336233118,-1091.30429574,0.00017198,2]
[324797463,1714336233127,-158.9698689,0.00017199,2]
[324797465,1714336233137,-12156.02728827,0.00017199,2]
[324797467,1714336233146,-44444.0,0.000172,2]
[324797469,1714336233155,-889.5820241,0.000172,2]
[324797471,1714336233164,-802.95279647,0.00017297,2]
[324797473,1714336233175,-927.91271944,0.00017297,2]
[324797668,1714336239366,-212.8552416,0.00014664,2]
[324797671,1714336239385,-160.39549973,0.00017297,2]
[324797673,1714336239395,-207.99357024,0.00017298,2]
[324797675,1714336239404,-475.03872929,0.00017298,2]
[324797677,1714336239413,-180.21374479,0.00017298,2]
[324797679,1714336239422,-155.24511279,0.00017298,2]
[324797681,1714336239432,-28.95615402,0.00017298,2]
[324797687,1714336239473,-671.47309005,0.00017298,2]
[324797689,1714336239482,-154.81422293,0.00017298,2]
[324797691,1714336239491,-154.99891037,0.00017298,2]
[324797693,1714336239500,-2100.78803626,0.00017298,2]
[324797694,1714336239510,-154.98101671,0.00017298,2]
[324797696,1714336239519,-2391.54694339,0.00017298,2]
[324797698,1714336239528,-155.0008864,0.00017298,2]
[324797700,1714336239537,-154.81422293,0.00017298,2]
[324797703,1714336239580,-308.53854102,0.00017298,2]
[324797705,1714336239590,-155.09717222,0.00017298,2]
[324797707,1714336239600,-194.30238856,0.00017298,2]
[324797708,1714336239609,-526.53023767,0.00017298,2]
[324797711,1714336239618,-154.81422293,0.00017298,2]
[324797713,1714336239627,-474.96750211,0.00017298,2]
[324797715,1714336239636,-1887.54593835,0.00017299,2]
[324798157,1714336243798,-13000.94,0.00017299,2]
[324798160,1714336243823,-0.00442127,0.00017299,2]
[324798198,1714336244188,-277.02972513,0.00017299,2]
[324798472,1714336359558,154.79876161,9.999e-05,2]
[324798473,1714336420896,2781.5762198,9.999e-05,2]
[324798474,1714336435545,680.30936626,9.999e-05,2]
[324798475,1714336796884,4240.1042896,0.00022,29]
[324798476,1714336828092,1091.30429574,9.999e-05,2]
[324798477,1714336877531,718.44665129,9.999e-05,2]
[324798479,1714336961497,6933.99606226,9.999e-05,2]
[324798480,1714336985176,10060.7909371,9.999e-05,2]
[324798481,1714336985202,1077.6521851,9.999e-05,2]
[324798482,1714336997617,354.44117982,9.999e-05,2]
[324798483,1714337109938,729.7450776,9.999e-05,2]
[324798484,1714337168517,25198.629385,3.5e-06,60]
[324798485,1714337231111,-188.96899093,0.00012291,2]
[324798486,1714337231133,-1505.57109622,0.00012544,2]
[324798487,1714337314195,354.44117982,9.999e-05,2]
[324798488,1714337318213,1091.30429574,9.999e-05,2]
[324798489,1714337319250,718.44665129,9.999e-05,2]
[324798490,1714337351093,-2485.82236798,0.00012225,2]
[324798491,1714337353108,-2426.59759332,0.00012225,2]
[324798492,1714337356167,-2283.5265755,0.00012225,2]
[324798493,1714337356188,-345.0880402,0.00012541,2]
[324798494,1714337356209,-300.0,0.00012542,2]
[324798495,1714337356230,-300.0,0.00012542,2]
[324798496,1714337356251,-49363.01989549,0.00012543,2]
[324798497,1714337433018,-7872.20435228,0.00012542,2]
[324798499,1714337433028,-300.0,0.00012542,2]
[324798502,1714337433039,-300.0,0.00012542,2]
[324798504,1714337433048,-9837.36669701,0.00012543,2]
[324798505,1714337433058,-1262.6177395,0.00012545,2]
[324798507,1714337433068,-421.44733195,0.00013358,2]
[324798509,1714337433078,-354.44117982,0.00013399,2]
[324798511,1714337433088,-1091.30429574,0.00013399,2]
[324798513,1714337433101,-213.93273453,0.000134,2]
[324798515,1714337433110,-1755.86422224,0.00013599,2]
[324798517,1714337433120,-213.93273451,0.000136,2]
[324798519,1714337433129,-1896.001102,0.00013699,2]
[324798521,1714337433138,-166.666666,0.00013699,2]
[324798523,1714337433147,-420.0,0.00013761,2]
[324798524,1714337433156,-420.0,0.00013796,2]
[324798526,1714337433165,-213.93273451,0.000138,2]
[324798528,1714337433176,-24900.0,0.00013824,2]
[324798530,1714337433186,-213.93273451,0.00014,2]
[324798532,1714337433195,-928.36107169,0.00014,2]
[324798534,1714337433204,-213.93273451,0.000142,2]
[324798536,1714337433213,-213.93273451,0.000144,2]
[324798538,1714337433222,-213.93273451,0.000146,2]
[324798540,1714337433231,-213.93273451,0.000148,2]
[324798542,1714337433241,-213.93273451,0.00015,2]
[324798544,1714337433250,-587.0,0.00015098,2]
[324798546,1714337433259,-587.0,0.00015176,2]
[324798548,1714337433269,-213.93273451,0.000152,2]
[324798550,1714337433278,-213.93273451,0.000154,2]
[324798552,1714337433288,-213.93273451,0.000156,2]
[324798554,1714337433297,-213.93273451,0.000158,2]
[324798556,1714337433309,-213.93273451,0.00016,2]
[324798558,1714337433318,-161.7,0.0001605,3]
[324798560,1714337433327,-213.93273451,0.000162,2]
[324798562,1714337433336,-1755.86422218,0.00016224,2]
[324798564,1714337433345,-919.09134024,0.00016331,2]
[324798566,1714337433354,-5405.55800487,0.00016331,2]
[324798567,1714337433363,-213.93273451,0.000164,2]
[324798569,1714337433372,-823.0,0.00016565,2]
[324798571,1714337433382,-213.93273451,0.000166,2]
[324798573,1714337433392,-823.0,0.00016693,2]
[324798575,1714337433402,-213.93273451,0.000168,2]
[324798577,1714337433411,-161.7,0.0001686,3]
[324798578,1714337433421,-213.93273451,0.00017,2]
[324798580,1714337433430,-235.93437582,0.00017198,7]
[324798582,1714337433440,-154.79876161,0.00017199,2]
[324798584,1714337433449,-8039.87303008,0.000172,2]
[324798586,1714337433458,-213.93273451,0.000172,2]
[324798588,1714337433467,-6307.80068505,0.000172,2]
[324798591,1714337433479,-649.30519078,0.000172,2]
[324798593,1714337433489,-1043.53954086,0.000172,2]
[324798652,1714337438942,-250.0,0.00012417,2]
[324798655,1714337438951,-468.25132778,0.000172,2]
[324798673,1714337439584,-6993.40473272,0.000172,2]
[324798674,1714337439594,-927.87342115,0.00017297,2]
[324798675,1714337439603,-301.97164847,0.00017298,2]
[324798676,1714337439612,-730.49023799,0.00017298,2]
[324798677,1714337439624,-1879.32925164,0.00017298,2]
[324798678,1714337439633,-1057.60563749,0.00017298,2]
[324798679,1714337439642,-471.63476084,0.00017298,2]
[324798902,1714337444461,-201.06187672,0.00012443,2]
[324798904,1714337444471,-705.03462886,0.00017298,2]
[324799418,1714337615647,154.79876161,9.999e-05,2]
[324799419,1714337650838,2146.59217539,0.0001,2]
[324799434,1714337872178,1091.30429574,9.999e-05,2]
[324799440,1714337964107,154.79876161,9.999e-05,2]
[324799466,1714338246882,154.79876161,9.999e-05,2]
[324799467,1714338389916,154.79876161,9.999e-05,2]
[324799468,1714338544537,250.0,9.685e-05,2]
[324799469,1714338555165,-1879.32925164,0.00010676,2]
[324799470,1714338555187,-300.0,0.00010676,2]
[324799471,1714338555207,-300.0,0.00010676,2]
[324799472,1714338555228,-7872.20435228,0.00010677,2]
[324799473,1714338555250,-202.61432276,0.00010683,2]
[324799474,1714338555270,-158.9613833,0.00010684,2]
[324799475,1714338555291,-1496.49060323,0.00010686,2]
[324799476,1714338555313,-34529.87933994,0.00010687,2]
[324799477,1714338557130,-11899.87683753,0.00010687,2]
[324799478,1714338563189,-3205.56897912,0.00010687,2]
[324799479,1714338565102,-9565.06143591,0.00010687,2]
[324799480,1714338565122,-24900.0,0.00010688,2]
[324799481,1714338565141,-92.01492227,0.00010939,2]
[324799482,1714338572116,-7374.08066229,0.00010686,2]
[324799483,1714338572143,-498.12368999,0.00010686,2]
[324799484,1714338572305,-989.73227503,0.00010939,2]
[324799485,1714338572329,-271.56745281,0.00011337,2]
[324799489,1714338632227,-1100.33521336,0.00012438,2]
[324799493,1714338632236,-877.80123469,0.00012439,2]
[324799498,1714338632246,-50.7630796,0.0001244,2]
[324799503,1714338632257,-562.74204777,0.0001244,2]
[324799507,1714338632267,-449.33996262,0.00012442,2]
[324799713,1714338638664,-709.97622325,0.00012442,2]
[324799716,1714338638673,-948.000551,0.00013699,2]
[324799718,1714338638682,-166.666666,0.00013699,2]
[324799720,1714338638691,-461.59774893,0.000138,2]
[324799722,1714338638701,-300.0,0.00014209,2]
[324799724,1714338638710,-300.0,0.00014209,2]
[324799726,1714338638719,-939.04672329,0.00015,2]
[324799728,1714338638729,-1312.48943229,0.00015117,2]
[324799729,1714338638738,-354.44117982,0.00015554,2]
[324799731,1714338638747,-420.0,0.00015563,2]
[324799733,1714338638756,-420.0,0.0001563,2]
[324799735,1714338638766,-150.0,0.0001592,3]
[324799737,1714338638775,-1879.32925164,0.00016292,2]
[324799739,1714338638784,-186.25450795,0.00016293,2]
[324799741,1714338638794,-194.54734174,0.00016293,2]
[324799743,1714338638804,-928.36107169,0.00016433,2]
[324799745,1714338638813,-150.0,0.0001647,3]
[324799748,1714338638823,-150.0,0.0001703,3]
[324799749,1714338638833,-217.25396224,0.00017035,2]
[324799751,1714338638842,-587.0,0.00017047,2]
[324799753,1714338638852,-217.25396221,0.00017076,2]
[324799755,1714338638862,-27583.05062222,0.0001711,2]
[324799974,1714338643319,-466.66475086,0.0001711,2]
[324800615,1714338790940,520.3609854,9.999e-05,2]
[324800616,1714338929977,451.5,0.00025,60]
[324800620,1714339028679,2625.86025565,9.999e-05,2]
[324800621,1714339366983,409.15735762,9.999e-05,2]
[324800622,1714339617207,-468.95064901,0.00010162,2]
[324800623,1714339641103,-2533.21970642,0.00010161,2]
[324800624,1714339644114,-2519.6177395,0.00010161,2]
[324800625,1714339646513,1078.063114,9.983e-05,2]
[324800626,1714339654114,-753.59822316,0.00010161,2]
[324800627,1714339654135,-1732.22414482,0.00010161,2]
[324800628,1714339664441,162.50582148,0.00010062,2]
[324800629,1714339731655,154.79876161,0.00010062,2]
[324800631,1714339743374,277.22536935,0.00010062,2]
[324800632,1714339748103,154.79876161,0.00010062,2]
[324800633,1714339753199,-300.0,0.00010159,2]
[324800634,1714339753219,-300.0,0.00010159,2]